bitfinex-derivatives/quotes_BTCF0:USTF0_20241117
["timestamp","ask_amount","ask_price","bid_price","bid_amount"]
[1731861018559,0.44116315,90362.0,90345.0,0.0052]
[1731861018560,0.055339,90347.0,90345.0,0.0052]
[1731861018758,0.055339,90347.0,90346.0,0.09414756]
[1731861019766,0.055339,90347.0,90346.0,0.13408034]
[1731861019767,0.056339,90347.0,90346.0,0.13408034]
[1731861020373,0.056339,90347.0,90346.0,0.14321835]
[1731861020860,0.056339,90347.0,90346.0,0.10441079]
[1731861021066,0.002,90347.0,90346.0,0.11741079]
[1731861021262,0.002,90347.0,90346.0,0.21265821]
[1731861021482,0.13172003,90359.0,90346.0,0.85015821]
[1731861021773,0.13172003,90365.0,90357.0,0.3608]
[1731861021957,0.13172003,90365.0,90361.0,0.05533]
[1731861021958,0.055329,90364.0,90361.0,0.05533]
[1731861022162,0.055329,90363.0,90362.0,0.055329]
[1731861022359,0.055329,90363.0,90362.0,0.06446701]
[1731861023072,0.055329,90363.0,90362.0,0.00913801]
[1731861023973,0.3608,90366.0,90364.0,0.055328]
[1731861024158,0.00166049,90371.0,90369.0,0.055325]
[1731861024159,0.13338052,90371.0,90369.0,0.055325]
[1731861024365,0.00166049,90371.0,90369.0,0.055325]
[1731861024665,0.00166049,90371.0,90370.0,0.00913801]
[1731861025466,0.00166049,90371.0,90370.0,0.09437801]
[1731861025762,0.13172003,90383.0,90382.0,0.055317]
[1731861025964,0.13172003,90385.0,90384.0,0.055316]
[1731861026169,0.13172003,90387.0,90386.0,0.055315]
[1731861026371,0.00011622,90389.0,90380.0,0.0962]
[1731861026565,0.00011622,90389.0,90388.0,0.055314]
[1731861027665,0.00011622,90389.0,90388.0,0.06445201]
[1731861028676,0.00011622,90389.0,90388.0,0.06545201]
[1731861029177,0.00011622,90389.0,90388.0,0.06645201]
[1731861032700,0.00011622,90389.0,90388.0,0.01113801]
[1731861033476,0.05392575,90389.0,90388.0,0.002]
[1731861033686,0.12760534,90389.0,90388.0,0.002]
[1731861033877,0.12760534,90389.0,90388.0,0.00049193]
[1731861033878,0.20929526,90389.0,90388.0,0.00049193]
[1731861034075,0.055325,90370.0,90364.0,0.055328]
[1731861034376,0.05380953,90369.0,90358.0,0.055332]
[1731861034575,0.09524742,90359.0,90353.0,0.0608]
[1731861034782,0.08849839,90356.0,90355.0,0.055334]
[1731861034975,0.05382164,90356.0,90355.0,0.055334]
[1731861035278,0.25136848,90358.0,90353.0,0.0608]
[1731861035492,0.05382164,90357.0,90353.0,0.0608]
[1731861035774,0.05382164,90356.0,90354.0,0.055335]
[1731861035979,0.19754684,90360.0,90358.0,0.055332]
[1731861036282,0.25137198,90360.0,90358.0,0.055332]
[1731861036579,0.62330353,90376.0,90354.0,0.02214065]
[1731861036580,0.05382176,90359.0,90354.0,0.02214065]
[1731861036780,0.19754684,90363.0,90362.0,0.05533]
[1731861037480,0.19754684,90369.0,90362.0,0.3608]
[1731861037678,0.19754684,90370.0,90368.0,0.055326]
[1731861037868,0.05381825,90369.0,90368.0,0.055326]
[1731861038179,0.25136509,90371.0,90368.0,0.055326]
[1731861038369,0.25136509,90371.0,90362.0,0.3608]
[1731861038573,0.25136509,90371.0,90369.0,0.055325]
[1731861038774,0.05381825,90370.0,90369.0,0.055325]
[1731861038971,0.05381825,90370.0,90362.0,0.3608]
[1731861038972,0.05381825,90370.0,90363.0,0.055329]
[1731861039274,0.05381825,90369.0,90368.0,0.055326]
[1731861039468,0.05381825,90369.0,90362.0,0.3608]
[1731861039668,0.05381825,90368.0,90367.0,0.055327]
[1731861039981,0.19754684,90374.0,90372.0,0.055324]
[1731861040175,0.05381745,90373.0,90372.0,0.055324]
[1731861040477,0.05381745,90375.0,90372.0,0.055324]
[1731861041075,0.05381745,90375.0,90373.0,0.055322]
[1731861041575,0.36136001,90376.0,90373.0,0.055322]
[1731861041775,0.3608,90376.0,90373.0,0.055322]
[1731861042681,0.3608,90376.0,90374.0,0.055322]
[1731861045173,0.055326,90369.0,90368.0,0.055326]
[1731861050276,0.055322,90375.0,90365.0,0.08524]
[1731861050488,0.1318162,90366.0,90365.0,0.140568]
[1731861050681,0.13180043,90366.0,90365.0,0.08524]
[1731861051184,0.055323,90373.0,90370.0,0.055325]
[1731861052089,0.3608,90376.0,90365.0,0.08524]
[1731861052285,0.05381942,90375.0,90365.0,0.08524]
[1731861052488,0.05381942,90375.0,90372.0,0.055323]
[1731861052774,0.10914142,90375.0,90374.0,0.055322]
[1731861056291,0.05381942,90375.0,90364.0,0.0852]
[1731861056482,0.055325,90371.0,90370.0,0.055325]
[1731861061593,0.055323,90373.0,90366.0,0.25436404]
[1731861061792,0.13180198,90373.0,90365.0,0.2211849]
[1731861062292,0.13180198,90371.0,90367.0,0.19903704]
[1731861062493,0.13180198,90371.0,90370.0,0.055325]
[1731861063179,0.13210993,90371.0,90370.0,0.055325]
[1731861063590,0.13210993,90371.0,90370.0,0.25436204]
[1731861063996,0.13210993,90371.0,90370.0,0.055325]
[1731861064489,0.13210993,90372.0,90371.0,0.055324]
[1731861064795,0.13210993,90372.0,90371.0,0.2544084]
[1731861065197,0.13210993,90372.0,90371.0,0.055324]
[1731861066097,0.16514379,90376.0,90369.0,0.26549376]
[1731861066305,0.16514379,90376.0,90375.0,0.055322]
[1731861067091,0.3608,90377.0,90373.0,0.19917325]
[1731861067287,0.16524438,90375.0,90374.0,0.055322]
[1731861069692,0.16524438,90375.0,90373.0,0.19917325]
[1731861069898,0.055323,90373.0,90372.0,0.19917325]
[1731861070723,0.16524438,90373.0,90371.0,0.19917325]
[1731861070909,0.055324,90372.0,90371.0,0.055324]
[1731861071504,0.1091429,90372.0,90371.0,0.055324]
[1731861071713,0.055324,90372.0,90371.0,0.055324]
[1731861071906,0.23091255,90372.0,90371.0,0.055324]
[1731861072203,0.46137539,90372.0,90371.0,0.055324]
[1731861073295,0.23091255,90372.0,90371.0,0.055324]
[1731861076700,0.23126016,90372.0,90371.0,0.055324]
[1731861077210,0.25093231,90372.0,90371.0,0.055324]
[1731861077400,0.37304792,90372.0,90371.0,0.055324]
[1731861078508,0.055324,90372.0,90371.0,0.055324]
[1731861079107,0.16528366,90373.0,90372.0,0.055324]
[1731861079317,0.52664367,90377.0,90372.0,0.26549376]
[1731861079607,0.52664367,90377.0,90376.0,0.055321]
[1731861079608,0.3608,90377.0,90376.0,0.055321]
[1731861083612,0.16528366,90381.0,90376.0,0.055321]
[1731861083811,0.16528366,90383.0,90382.0,0.055317]
[1731861084011,0.0305,90385.0,90384.0,0.055316]
[1731861084212,0.05381333,90386.0,90381.0,0.19913174]
[1731861084411,0.16533819,90389.0,90385.0,0.3608]
[1731861084616,0.00011622,90389.0,90388.0,0.055314]
[1731861084907,0.13227938,90389.0,90388.0,0.33956574]
[1731861085319,0.00011622,90389.0,90388.0,0.140434]
[1731861085621,0.17555521,90389.0,90388.0,0.140434]
[1731861086727,0.05392438,90389.0,90388.0,0.140434]
[1731861087909,0.25201244,90389.0,90388.0,0.140434]
[1731861088420,0.25185266,90389.0,90388.0,0.140434]
[1731861088619,0.05392438,90389.0,90388.0,0.140434]
[1731861088815,0.1980482,90389.0,90388.0,0.140434]
[1731861089520,0.25185636,90389.0,90388.0,0.140434]
[1731861090016,0.25185636,90389.0,90388.0,0.055314]
[1731861090523,0.05392438,90389.0,90388.0,0.055314]
[1731861090724,0.25185636,90389.0,90388.0,0.055314]
[1731861090918,0.31635636,90389.0,90388.0,0.055314]
[1731861091111,0.11842438,90389.0,90388.0,0.055314]
[1731861091513,0.26244158,90389.0,90388.0,0.055314]
[1731861091708,0.31625425,90389.0,90388.0,0.055314]
[1731861092124,0.11842438,90389.0,90388.0,0.055314]
[1731861093236,0.11842438,90389.0,90376.0,0.3608]
[1731861093237,0.055321,90377.0,90367.0,0.055327]
[1731861093426,0.3608,90375.0,90361.0,0.08512]
[1731861093611,0.055325,90369.0,90368.0,0.055326]
[1731861094010,0.15057242,90369.0,90368.0,0.055326]
[1731861095613,0.3608,90375.0,90366.0,0.02214223]
[1731861095820,0.38839589,90375.0,90366.0,0.02214223]
[1731861096023,0.055324,90372.0,90371.0,0.055324]
[1731861096925,0.055326,90368.0,90366.0,0.07746923]
[1731861097411,0.0634,90371.0,90370.0,0.055325]
[1731861099727,0.0634,90371.0,90362.0,0.19913174]
[1731861100029,0.0634,90371.0,90363.0,0.19913174]
[1731861100213,0.0634,90371.0,90369.0,0.055325]
[1731861101820,0.118725,90371.0,90369.0,0.055325]
[1731861108628,0.05382007,90370.0,90369.0,0.055325]
[1731861109526,0.055327,90367.0,90365.0,0.055328]
[1731861112133,0.055327,90367.0,90361.0,0.1072656]
[1731861112432,0.13182681,90363.0,90362.0,0.05533]
[1731861113328,0.13182681,90363.0,90361.0,0.1072656]
[1731861113329,0.13182681,90364.0,90363.0,0.055329]
[1731861114627,0.13182681,90364.0,90363.0,0.140409]
[1731861115634,0.41672501,90370.0,90368.0,0.055326]
[1731861115825,0.416125,90370.0,90368.0,0.055326]
[1731861117429,0.416125,90370.0,90369.0,0.055325]
[1731861121344,0.49262681,90370.0,90369.0,0.055325]
[1731861121540,0.13182681,90374.0,90370.0,0.055325]
[1731861121741,0.13182681,90376.0,90375.0,0.055322]
[1731861121947,0.13203657,90376.0,90375.0,0.055322]
[1731861122343,0.3608,90378.0,90377.0,0.055321]
[1731861123349,0.16480171,90380.0,90379.0,0.055319]
[1731861123644,0.16480171,90380.0,90377.0,0.47863508]
[1731861123645,0.23139713,90385.0,90377.0,0.47863508]
[1731861123849,0.17744363,90384.0,90383.0,0.055317]
[1731861124146,0.00011622,90389.0,90388.0,0.055314]
[1731861124334,0.12375507,90389.0,90388.0,0.140394]
[1731861124539,0.00011622,90389.0,90388.0,0.140394]
[1731861124733,0.17756822,90389.0,90388.0,0.140394]
[1731861127449,0.05392563,90389.0,90388.0,0.140394]
[1731861129349,0.25191872,90389.0,90388.0,0.140394]
[1731861130445,0.05392563,90389.0,90388.0,0.15054981]
[1731861130648,0.26250353,90410.0,90388.0,0.15054981]
[1731861130649,0.08579987,90400.0,90398.0,0.055308]
[1731861130841,0.22939309,90415.0,90407.0,0.055302]
[1731861131036,0.0314,90415.0,90407.0,0.055302]
[1731861131649,8.517e-05,90411.0,90407.0,0.055302]
[1731861133149,8.517e-05,90411.0,90407.0,0.416102]
[1731861134155,8.517e-05,90411.0,90407.0,0.501182]
[1731861135349,8.517e-05,90411.0,90407.0,1.0388681]
[1731861135350,6.5e-07,90408.0,90407.0,1.0388681]
[1731861135648,0.0318,90422.0,90421.0,0.055294]
[1731861135947,0.0318,90422.0,90421.0,0.501174]
[1731861138750,0.0318,90422.0,90421.0,0.1126258]
[1731861138943,0.0318,90422.0,90421.0,0.1679198]
[1731861139258,0.08558554,90422.0,90421.0,0.1679198]
[1731861139452,0.22895918,90422.0,90421.0,0.1679198]
[1731861139641,0.08558554,90422.0,90421.0,0.1679198]
[1731861142452,0.08558441,90422.0,90421.0,0.1679198]
[1731861143356,0.0318,90422.0,90421.0,0.26315561]
[1731861143853,0.00013023,90426.0,90425.0,0.055291]
[1731861144056,0.00013023,90426.0,90425.0,0.416091]
[1731861145750,0.0314,90431.0,90430.0,0.055288]
[1731861145952,0.0314,90431.0,90430.0,0.15052381]
[1731861146153,0.0314,90431.0,90430.0,0.16089657]
[1731861146455,0.0306,90447.0,90430.0,0.15052381]
[1731861146652,0.0306,90447.0,90441.0,0.055281]
[1731861146653,0.0318,90446.0,90441.0,0.055281]
[1731861146853,0.0318,90446.0,90441.0,0.140281]
[1731861147060,0.36089164,90442.0,90441.0,0.140281]
[1731861149145,9.164e-05,90442.0,90441.0,0.140281]
[1731861150756,9.164e-05,90442.0,90441.0,0.140281]
[1731861153463,9.164e-05,90442.0,90441.0,0.472001]
[1731861153656,0.0325,90463.0,90441.0,0.863201]
[1731861153853,0.0325,90463.0,90455.0,0.055273]
[1731861154665,0.00174095,90456.0,90455.0,0.0554084]
[1731861155870,0.36254095,90456.0,90455.0,0.1404084]
[1731861156468,0.00174095,90456.0,90455.0,0.1404084]
[1731861157555,0.00174095,90456.0,90455.0,0.0851354]
[1731861158065,0.36254095,90456.0,90455.0,0.1404084]
[1731861160777,0.36254095,90456.0,90455.0,0.12955884]
[1731861160778,0.41630831,90456.0,90455.0,0.12955884]
[1731861161161,0.41630814,90456.0,90455.0,0.12955884]
[1731861161664,0.36254095,90456.0,90455.0,0.12955884]
[1731861161866,0.41630876,90456.0,90455.0,0.12955884]
[1731861162175,0.36254095,90456.0,90455.0,0.12955884]
[1731861162374,0.055274,90454.0,90442.0,0.05528]
[1731861162667,0.29239499,90444.0,90435.0,0.08496]
[1731861162883,0.16458681,90437.0,90434.0,0.055285]
[1731861163165,0.08647999,90436.0,90434.0,0.055285]
[1731861163368,0.05378022,90435.0,90434.0,0.055285]
[1731861164857,0.00060001,90439.0,90438.0,0.055283]
[1731861165056,0.00060001,90439.0,90431.0,0.08661829]
[1731861165057,0.05377825,90439.0,90431.0,0.08661829]
[1731861165256,0.19715918,90441.0,90440.0,0.055282]
[1731861165463,0.05377994,90441.0,90440.0,0.055282]
[1731861165671,0.25144627,90441.0,90440.0,0.055282]
[1731861166169,0.05377994,90441.0,90440.0,0.055282]
[1731861166672,0.0332,90442.0,90440.0,0.055282]
[1731861166878,0.19796305,90442.0,90440.0,0.055282]
[1731861167276,0.22866305,90443.0,90440.0,0.055282]
[1731861167463,0.0639,90443.0,90442.0,0.055281]
[1731861167958,0.22866305,90443.0,90442.0,0.055281]
[1731861168773,0.0639,90443.0,90442.0,0.055281]
[1731861174571,0.0316,90453.0,90452.0,0.055275]
[1731861174874,0.0316,90453.0,90451.0,0.055275]
[1731861176067,0.19636305,90453.0,90451.0,0.055275]
[1731861176570,0.3608,90452.0,90451.0,0.055275]
[1731861180485,0.52556305,90452.0,90451.0,0.055275]
[1731861180784,0.41457272,90452.0,90451.0,0.055275]
[1731861180972,0.3608,90452.0,90451.0,0.055275]
[1731861181376,0.41457212,90452.0,90451.0,0.055275]
[1731861182479,0.3608,90452.0,90451.0,0.055275]
[1731861182979,0.41457356,90452.0,90451.0,0.055275]
[1731861183770,0.66566946,90452.0,90446.0,0.08492]
[1731861183972,0.2310417,90449.0,90448.0,0.055277]
[1731861184480,0.40100705,90449.0,90448.0,0.055277]
[1731861185167,0.34723349,90449.0,90448.0,0.055277]
[1731861185577,0.40100705,90449.0,90448.0,0.055277]
[1731861185975,0.16996535,90449.0,90448.0,0.055277]
[1731861186375,0.40100705,90449.0,90448.0,0.055277]
[1731861186579,0.16996535,90449.0,90448.0,0.055277]
[1731861189788,0.16996535,90449.0,90448.0,0.140197]
[1731861190179,0.2310417,90451.0,90448.0,0.140197]
[1731861190385,0.2310417,90451.0,90450.0,0.055276]
[1731861191584,0.5918417,90451.0,90450.0,0.055276]
[1731861194796,0.5918417,90451.0,90450.0,0.25402112]
[1731861194797,0.3608,90451.0,90450.0,0.25402112]
[1731861195289,0.19625702,90455.0,90454.0,0.055273]
[1731861195488,0.0311,90455.0,90454.0,0.055273]
[1731861199790,0.27936521,90455.0,90454.0,0.055273]
[1731861199990,0.14598192,90455.0,90454.0,0.055273]
[1731861200385,0.44801631,90455.0,90454.0,0.055273]
[1731861203198,0.44774306,90455.0,90454.0,0.055273]
[1731861203697,0.41005734,90455.0,90449.0,0.08492]
[1731861203897,0.41005734,90455.0,90454.0,0.055273]
[1731861205094,0.4474146,90455.0,90454.0,0.055273]
[1731861205288,0.33253268,90455.0,90454.0,0.055273]
[1731861205984,0.48220044,90455.0,90454.0,0.055273]
[1731861206191,0.59680379,90455.0,90454.0,0.055273]
[1731861206594,0.08486947,90455.0,90454.0,0.055273]
[1731861207592,0.14014247,90455.0,90454.0,0.055273]
[1731861207800,0.055277,90448.0,90447.0,0.28390285]
[1731861207999,0.055277,90448.0,90447.0,0.140158]
[1731861208000,0.53225889,90448.0,90447.0,0.140158]
[1731861208195,0.58837929,90448.0,90447.0,0.055278]
[1731861208501,0.055279,90445.0,90443.0,0.19902285]
[1731861208697,0.0317,90444.0,90443.0,0.19902285]
[1731861209000,0.16516098,90444.0,90442.0,0.19902285]
[1731861209189,0.16516098,90444.0,90443.0,0.05528]
[1731861209390,0.16516098,90445.0,90444.0,0.05528]
[1731861209590,0.16516098,90445.0,90441.0,0.19912657]
[1731861209591,0.1652022,90445.0,90442.0,0.26143219]
[1731861209796,0.1652022,90447.0,90446.0,0.055278]
[1731861209993,0.1652022,90447.0,90446.0,0.11768734]
[1731861210396,0.16521022,90447.0,90446.0,0.06240934]
[1731861210907,0.0537734,90449.0,90448.0,0.055277]
[1731861210908,0.16521171,90449.0,90448.0,0.055277]
[1731861211404,0.16521171,90449.0,90448.0,0.140157]
[1731861214411,0.3608,90452.0,90451.0,0.055275]
[1731861214595,0.5920399,90452.0,90451.0,0.055275]
[1731861214802,0.75946401,90452.0,90451.0,0.055275]
[1731861215002,0.52822411,90452.0,90451.0,0.055275]
[1731861220003,0.66208158,90452.0,90451.0,0.055275]
[1731861220304,0.39877417,90452.0,90451.0,0.055275]
[1731861220994,0.23135006,90452.0,90451.0,0.055275]
[1731861221196,0.39877417,90452.0,90451.0,0.055275]
[1731861221398,0.23135006,90452.0,90451.0,0.055275]
[1731861221599,0.16524966,90453.0,90450.0,0.22762327]
[1731861221800,0.16524966,90453.0,90452.0,0.055275]
[1731861222009,0.52604966,90453.0,90452.0,0.055275]
[1731861222203,0.3608,90453.0,90452.0,0.055275]
[1731861224805,0.52604962,90453.0,90452.0,0.055275]
[1731861225009,0.3608,90453.0,90452.0,0.055275]
[1731861225406,0.52605118,90453.0,90452.0,0.055275]
[1731861228116,0.3608,90453.0,90452.0,0.25429785]
[1731861228327,0.52605118,90453.0,90452.0,0.055275]
[1731861228725,0.3608,90453.0,90452.0,0.055275]
[1731861229234,0.3608,90453.0,90452.0,0.15037527]
[1731861229835,0.66422816,90453.0,90452.0,0.15037527]
[1731861232424,0.66427954,90453.0,90452.0,0.15037527]
[1731861234333,0.66427954,90453.0,90452.0,0.11766744]
[1731861234740,0.53014635,90453.0,90452.0,0.11766744]
[1731861235235,0.16934635,90453.0,90452.0,0.11766744]
[1731861236628,5.138e-05,90453.0,90452.0,0.38266093]
[1731861237031,5.138e-05,90453.0,90452.0,0.11766744]
[1731861237335,8.155e-05,90456.0,90452.0,0.11766744]
[1731861237336,8.155e-05,90456.0,90455.0,0.055273]
[1731861237542,8.155e-05,90456.0,90455.0,0.42644269]
[1731861238832,8.155e-05,90456.0,90455.0,0.69150112]
[1731861239032,8.155e-05,90456.0,90455.0,0.42644269]
[1731861240452,8.155e-05,90456.0,90455.0,0.33069099]
[1731861240742,0.13233425,90456.0,90455.0,0.33891374]
[1731861241152,8.155e-05,90456.0,90455.0,0.140113]
[1731861241445,8.155e-05,90456.0,90455.0,0.3389108]
[1731861241747,8.155e-05,90456.0,90455.0,0.140113]
[1731861244754,0.115725,90456.0,90455.0,0.140113]
[1731861245048,0.115725,90456.0,90455.0,0.055273]
[1731861245252,0.16947802,90456.0,90455.0,0.055273]
[1731861245636,0.11571282,90456.0,90455.0,0.055273]
[1731861245834,0.16947802,90456.0,90455.0,0.055273]
[1731861247347,0.16947802,90456.0,90450.0,0.02860042]
[1731861247646,0.16939647,90455.0,90450.0,0.06239244]
[1731861247848,8.155e-05,90456.0,90453.0,0.055274]
[1731861247849,0.16905876,90454.0,90453.0,0.055274]
[1731861248143,0.11529356,90455.0,90453.0,0.055274]
[1731861248349,0.11529356,90455.0,90454.0,0.06239244]
[1731861248645,0.0537652,90455.0,90454.0,0.06239244]
[1731861248831,8.155e-05,90456.0,90455.0,0.055273]
[1731861249036,8.155e-05,90456.0,90455.0,0.140113]
[1731861251748,8.155e-05,90456.0,90455.0,0.4051613]
[1731861253442,8.155e-05,90456.0,90455.0,0.140113]
[1731861255646,8.155e-05,90456.0,90455.0,0.055273]
[1731861255839,0.18754931,90456.0,90455.0,0.19885996]
[1731861256041,0.05535355,90456.0,90453.0,0.055274]
[1731861256244,0.0308,90455.0,90453.0,0.055274]
[1731861256438,0.0308,90455.0,90454.0,0.055273]
[1731861258654,0.19988006,90455.0,90454.0,0.055273]
[1731861259764,0.1998322,90455.0,90454.0,0.055273]
[1731861260760,0.1998322,90455.0,90448.0,0.055277]
[1731861260761,0.055276,90450.0,90448.0,0.055277]
[1731861260948,0.1998322,90455.0,90448.0,0.055277]
[1731861260949,0.6468092,90449.0,90448.0,0.055277]
[1731861262853,0.5915322,90449.0,90444.0,0.08484]
[1731861263049,0.5915322,90449.0,90443.0,0.05528]
[1731861263050,0.055279,90445.0,90443.0,0.05528]
[1731861263262,0.17149674,90444.0,90443.0,0.14008]
[1731861263559,0.17149674,90444.0,90443.0,0.14719244]
[1731861263560,0.05376982,90444.0,90443.0,0.14719244]
[1731861263748,0.42306001,90449.0,90447.0,0.055278]
[1731861263947,0.17172779,90448.0,90447.0,0.055278]
[1731861266054,0.05377241,90448.0,90447.0,0.055278]
[1731861266857,0.42310001,90449.0,90448.0,0.055277]
[1731861267155,0.4225,90449.0,90448.0,0.055277]
[1731861275362,0.0617,90449.0,90448.0,0.055277]
[1731861280175,0.0617,90449.0,90448.0,0.38651887]
[1731861280562,0.0308,90455.0,90448.0,0.45461154]
[1731861280769,0.09319244,90455.0,90454.0,0.055273]
[1731861282680,0.29129948,90455.0,90454.0,0.055273]
[1731861282866,0.0308,90455.0,90454.0,0.055273]
[1731861283178,0.09319244,90455.0,90454.0,0.055273]
[1731861284773,0.22673935,90455.0,90454.0,0.055273]
[1731861285376,0.28201235,90455.0,90454.0,0.055273]
[1731861288776,0.20223711,90455.0,90454.0,0.055273]
[1731861290280,0.40085766,90455.0,90454.0,0.055273]
[1731861290576,0.40085781,90455.0,90454.0,0.055273]
[1731861291572,0.20223726,90455.0,90454.0,0.055273]
[1731861291881,0.40085781,90455.0,90454.0,0.055273]
[1731861292173,0.13984482,90455.0,90454.0,0.055273]
[1731861292376,0.20223726,90455.0,90454.0,0.055273]
[1731861292982,0.56303726,90455.0,90454.0,0.055273]
[1731861293981,0.5630372,90455.0,90454.0,0.055273]
[1731861295381,0.5322372,90455.0,90454.0,0.055273]
[1731861298089,0.47846544,90455.0,90454.0,0.055273]
[1731861298676,0.055276,90451.0,90450.0,0.055276]
[1731861298869,0.055276,90451.0,90450.0,0.52862526]
[1731861301081,0.42379245,90455.0,90450.0,0.47334926]
[1731861301278,0.47846544,90455.0,90454.0,0.055273]
[1731861302588,0.055273,90454.0,90453.0,0.33178265]
[1731861302885,0.055273,90454.0,90440.0,0.0301]
[1731861302886,0.44934544,90454.0,90448.0,0.33178265]
[1731861303074,0.12478488,90449.0,90443.0,0.33178265]
[1731861303274,0.12478488,90449.0,90441.0,0.00010372]
[1731861303275,0.18006588,90442.0,90441.0,0.00010372]
[1731861303678,0.18006588,90442.0,90441.0,0.26541033]
[1731861303875,0.18006588,90442.0,90441.0,0.00010372]
[1731861304286,0.11767344,90442.0,90441.0,0.00010372]
[1731861304480,0.18006588,90442.0,90441.0,0.00010372]
[1731861304673,0.11767344,90442.0,90441.0,0.00010372]
[1731861306185,0.18006588,90442.0,90441.0,0.00010372]
[1731861307582,0.20864183,90442.0,90441.0,0.00010372]
[1731861307979,0.27412762,90442.0,90441.0,0.00010372]
[1731861308287,0.60584762,90442.0,90441.0,0.00010372]
[1731861308676,0.60584762,90442.0,90427.0,0.06049]
[1731861308677,0.055289,90429.0,90427.0,0.06049]
[1731861308881,0.58120259,90428.0,90427.0,0.05529]
[1731861309479,0.416089,90428.0,90427.0,0.05529]
[1731861310295,0.416089,90428.0,90417.0,9.024e-05]
[1731861310296,0.055295,90418.0,90417.0,9.024e-05]
[1731861310493,0.54087988,90418.0,90417.0,9.024e-05]
[1731861310680,0.47848744,90418.0,90417.0,9.024e-05]
[1731861312590,0.42319244,90418.0,90417.0,9.024e-05]
[1731861313887,0.45164449,90418.0,90417.0,9.024e-05]
[1731861317678,0.36136001,90428.0,90417.0,9.024e-05]
[1731861317881,0.00165931,90437.0,90427.0,0.11768244]
[1731861317882,0.36245931,90437.0,90427.0,0.11768244]
[1731861318081,0.36245931,90437.0,90436.0,0.055284]
[1731861318491,0.3608,90437.0,90436.0,0.055284]
[1731861318789,0.3608,90446.0,90434.0,0.23198246]
[1731861318991,0.3608,90446.0,90445.0,0.055279]
[1731861329611,0.08330105,90458.0,90445.0,0.055279]
[1731861329898,0.02803005,90458.0,90455.0,0.055273]
[1731861330493,0.36088155,90456.0,90455.0,0.055273]
[1731861335099,0.36088155,90456.0,90451.0,0.055275]
[1731861335291,0.09512139,90452.0,90451.0,0.055275]
[1731861335492,0.09512139,90452.0,90446.0,0.115978]
[1731861335493,0.055277,90448.0,90446.0,0.115978]
[1731861335686,0.055277,90448.0,90446.0,0.055278]
[1731861335687,0.416077,90448.0,90446.0,0.055278]
[1731861337707,0.416077,90448.0,90434.0,0.06130061]
[1731861337708,0.05528,90444.0,90434.0,0.11772]
[1731861337899,0.3608,90440.0,90439.0,0.055283]
[1731861339605,0.41663801,90448.0,90447.0,0.055278]
[1731861339802,0.416078,90448.0,90447.0,0.055278]
[1731861340709,0.44444921,90448.0,90447.0,0.055278]
[1731861342412,0.38917121,90448.0,90444.0,0.19898246]
[1731861342616,0.05528,90445.0,90444.0,0.055279]
[1731861343310,0.05528,90445.0,90444.0,0.25426146]
[1731861343903,0.05528,90445.0,90444.0,0.055279]
[1731861344201,0.05528,90445.0,90444.0,0.25426146]
[1731861344627,0.05528,90445.0,90444.0,0.055279]
[1731861345714,0.38977122,90448.0,90447.0,0.055278]
[1731861345910,0.38917121,90448.0,90447.0,0.25381318]
[1731861346099,0.3608,90448.0,90447.0,0.055278]
[1731861346813,0.416077,90448.0,90447.0,0.055278]
[1731861347718,0.416077,90448.0,90447.0,0.32042518]
[1731861348204,0.4785037,90448.0,90447.0,0.32042518]
[1731861349318,0.50675456,90448.0,90447.0,0.32042518]
[1731861350014,0.50675456,90448.0,90447.0,0.26514718]
[1731861350205,0.44432786,90448.0,90447.0,0.26514718]
[1731861351204,0.44432786,90448.0,90447.0,0.46405233]
[1731861351408,0.44432786,90448.0,90447.0,0.26514718]
[1731861352005,0.97414416,90448.0,90447.0,0.26514718]
[1731861352211,0.53949003,90448.0,90447.0,0.21524718]
[1731861354324,0.73821847,90448.0,90447.0,0.21524718]
[1731861355221,0.53949003,90448.0,90447.0,0.21524718]
[1731861355811,0.6430563,90448.0,90447.0,0.21524718]
[1731861356018,0.44432786,90448.0,90447.0,0.21524718]
[1731861357009,0.51418258,90448.0,90447.0,0.21524718]
[1731861357408,0.51418258,90448.0,90429.0,0.0052]
[1731861357409,0.45890558,90448.0,90433.0,0.055286]
[1731861357614,0.3608,90435.0,90433.0,0.055286]
[1731861359026,0.416085,90435.0,90433.0,0.055286]
[1731861360920,0.44395385,90435.0,90433.0,0.055286]
[1731861364124,0.38866885,90435.0,90433.0,0.055286]
[1731861364313,0.3608,90435.0,90433.0,0.055286]
[1731861365624,0.3608,90435.0,90426.0,0.33178265]
[1731861365830,0.3608,90435.0,90422.0,0.33178265]
[1731861365831,0.3608,90427.0,90422.0,0.33178265]
[1731861366125,0.3608,90427.0,90425.0,0.055291]
[1731861368427,0.416091,90427.0,90425.0,0.055291]
[1731861369630,0.3608,90427.0,90425.0,0.055291]
[1731861371024,0.3608,90427.0,90426.0,0.055291]
[1731861372235,0.3608,90427.0,90422.0,0.055293]
[1731861372537,0.18779574,90423.0,90422.0,0.055293]
[1731861372738,0.055292,90423.0,90422.0,0.055293]
[1731861372937,0.18776917,90423.0,90422.0,0.055293]
[1731861373137,0.055293,90422.0,90421.0,0.03205892]
[1731861373339,0.055293,90422.0,90421.0,0.00165892]
[1731861373726,0.22087716,90422.0,90421.0,0.00165892]
[1731861374024,0.055293,90422.0,90421.0,0.00165892]
[1731861374220,0.11776068,90422.0,90421.0,0.00165892]
[1731861375625,0.055295,90418.0,90417.0,9.024e-05]
[1731861376228,0.2208279,90418.0,90417.0,9.024e-05]
[1731861376438,0.22085943,90418.0,90417.0,9.024e-05]
[1731861376827,0.055295,90418.0,90417.0,9.024e-05]
[1731861378042,0.08267497,90418.0,90417.0,9.024e-05]
[1731861378427,0.24824473,90418.0,90417.0,9.024e-05]
[1731861378941,0.08267497,90418.0,90417.0,9.024e-05]
[1731861383439,0.08267497,90418.0,90417.0,0.19872812]
[1731861383634,0.08267497,90418.0,90417.0,9.024e-05]
[1731861384729,0.44347497,90418.0,90417.0,0.19870472]
[1731861385341,0.44347497,90418.0,90417.0,0.19869475]
[1731861385528,0.44347497,90418.0,90417.0,9.024e-05]
[1731861387745,0.44347497,90418.0,90417.0,0.05538624]
[1731861388044,0.38817997,90418.0,90417.0,0.05538624]
[1731861388633,0.44347497,90418.0,90417.0,0.05538624]
[1731861388937,0.44347497,90418.0,90417.0,9.024e-05]
[1731861389328,0.44347497,90418.0,90417.0,0.05538624]
[1731861394832,0.60908464,90418.0,90417.0,0.05538624]